[Event "Italian-ch Women 2022"]
[Site "Cagliari"]
[Date "2022.11.17"]
[Round "1.1"]
[White "Gabbani, Sara"]
[Black "Zimina, Olga"]
[Result "0-1"]
[ECO "B12"]
[WhiteElo "1844"]
[BlackElo "2283"]
[Annotator "TA"]
[PlyCount "76"]
[EventDate "2022.11.17"]
[EventType "tourn"]
[EventCountry "ITA"]
[SourceTitle "playchess.com"]
[Source "ChessBase"]
[SourceQuality "1"]
[TimeControl "40/6000+30:20/3000:900+30"]

{[%evp 9,76,18,14,-6,22,11,17,0,0,9,44,27,44,44,44,44,40,40,37,0,0,0,65,64,66,47,65,13,15,22,34,-16,166,154,135,50,58,-35,-31,-25,-31,-19,-19,-38,-48,-49,-34,-48,-44,-39,-49,-55,-15,-95,-85,-86,-75,-82,-49,-112,-71,-81,-53,-1777,-1704,-1228,-1189,-5163,-5152]} 1. e4 {[%emt 0:00:04]} c6 {[%emt 0:00:06]} 2. d4 {[%emt 0:00:06]} d5 {[%emt 0:00:05]} 3. e5 {[%emt 0:00:07]} c5 {[%emt 0:00:08]} 4. dxc5 {[%emt 0:00:26]} e6 {[%emt 0:00:08]} 5. a3 {[%emt 0:00:12]} Bxc5 {[%emt 0:00:10]} 6. b4 {[%emt 0:00:07] B12: Caro-Kann: Advance Variation.} Bb6 {[%emt 0:00:26]} 7. Qg4 {[%emt 0:01:16]} Ne7 {[%emt 0:00:51]} 8. Nf3 {[%emt 0:02:07] The position is equal.} Nbc6 {[%emt 0:01:10]} 9. Bb2 {[%emt 0:08:33]} Nf5 {[%emt 0:03:01]} 10. Bd3 {[%emt 0:03:58] Black must now prevent Bxf5.} h5 {[%emt 0:00:42]} 11. Qf4 {[%emt 0:03:05]} Nce7 {[%emt 0:00:23]} 12. O-O {[%emt 0:07:27]} Bd7 {[%emt 0:01:05]} 13. Nc3 {[%emt 0:03:58]} a6 {[%emt 0:09:45]} 14. Rfe1 {[%emt 0:06:45] [#]} Ng6 $146 {[%emt 0:18:33]} ({Predecessor:} 14... Rc8 15. Rad1 Kf8 16. g3 Rc7 17. Ne2 Bb5 18. Ned4 Bxd3 19. cxd3 g6 20. Rc1 Kg7 {½-½ (56) Taspinar,Y (2311)-Chitlange,S (2216) Belgrade 2022}) 15. Qd2 {[%emt 0:04:25][%cal Oc3d5] aiming for Nxd5!} Ngh4 {[%emt 0:02:12]} (15... Nfh4 $1 $11) 16. Nxh4 $14 {[%emt 0:11:06]} Nxh4 {[%emt 0:01:02]} 17. a4 {[%emt 0:12:00]} Rc8 {[%emt 0:04:08]} 18. a5 {[%emt 0:03:18]} (18. Ne2 $1 $14) 18... Bd4 $11 {[%emt 0:00:57]} 19. Na4 {[%emt 0:02:21]} Ba7 {[%emt 0:01:52]} 20. Nb6 {[%emt 0:06:45]} (20. Nc5 $14 Bxc5 21. bxc5) 20... Rc7 $2 {[%emt 0:15:38]} (20... Bxb6 $11 21. axb6 Qxb6) 21. Nxd7 $18 {[%emt 0:04:42]} Qxd7 {[%emt 0:02:57] [#]} 22. Qg5 {[%emt 0:01:26] Against Ng6} (22. Ba3 $1 $16) 22... Ng6 $1 $14 {[%emt 0:00:09]} 23. Bxg6 {[%emt 0:04:56]} (23. b5 $14 axb5 24. Ba3) 23... fxg6 $15 {[%emt 0:00:08]} 24. Qxg6+ {[%emt 0:23:20]} Qf7 {[%emt 0:00:06]} 25. Qxf7+ {[%emt 0:00:44]} Kxf7 {[%emt 0:00:02]} 26. c3 {[%emt 0:07:00]} g5 {[%emt 0:15:43][%mdl 1024] Black has compensation.} 27. Rad1 {[%emt 0:03:46]} Kg6 {[%emt 0:03:49]} 28. Rd3 {[%emt 0:04:44]} Rf8 {[%emt 0:00:31]} 29. Re2 {[%emt 0:00:47]} Rcf7 {[%emt 0:00:10][%cal Rf7f2]} 30. Rdd2 {[%emt 0:01:15]} Rf4 {[%emt 0:10:21]} 31. g3 {[%emt 0:03:31]} (31. Bc1 $11) 31... Rf3 $17 {[%emt 0:00:39]} 32. Kg2 {[%emt 0:00:25]} g4 {[%emt 0:00:13]} 33. Rc2 {[%emt 0:00:51]} Rc8 {[%emt 0:00:20][%cal Oh5h4]} 34. Rc1 {[%emt 0:00:53]} (34. h3 $1 $15) 34... Rc4 {[%emt 0:00:22][%cal Oh5h4]} 35. h3 {[%emt 0:00:32]} Re4 $36 {[%emt 0:20:08][%mdl 2112] [#] Overworked Piece. White is under pressure.} 36. Rxe4 {[%emt 0:00:00][%mdl 8192]} (36. Rec2 $15) 36... Rxf2+ $19 {[%emt 0:00:09] Black is clearly winning.} 37. Kh1 {[%emt 0:00:00]} dxe4 {[%emt 0:00:08][%cal Bd5e4,Be4e3][%mdl 32]} 38. Ba1 {[%emt 0:00:00]} e3 {[%emt 0:00:00] Black used his chance.  Weighted Error Value: White=0.53/Black=0.21 (precise)} 0-1

[Event "Italian-ch Women 2022"]
[Site "Cagliari"]
[Date "2022.11.17"]
[Round "1.2"]
[White "Martinelli, Valeria"]
[Black "Brunello, Marina"]
[Result "0-1"]
[ECO "B90"]
[WhiteElo "2008"]
[BlackElo "2337"]
[Annotator "TA"]
[PlyCount "72"]
[EventDate "2022.11.17"]
[EventType "tourn"]
[EventCountry "ITA"]
[SourceTitle "playchess.com"]
[Source "ChessBase"]
[SourceQuality "1"]
[TimeControl "40/6000+30:20/3000:900+30"]

{[%evp 17,72,30,22,29,31,25,25,7,31,12,40,29,38,26,85,92,103,81,105,79,99,-40,-43,-56,-51,-62,-35,-183,-116,-175,-174,-210,-221,-212,-196,-327,-314,-335,-317,-279,-256,-287,-268,-269,-270,-290,-275,-401,-416,-511,-510,-496,-464,-668,-610,-1749,-1747]} 1. e4 {[%emt 0:00:03]} c5 {[%emt 0:00:07]} 2. Nf3 {[%emt 0:00:06]} d6 {[%emt 0:00:09]} 3. d4 {[%emt 0:00:05]} cxd4 {[%emt 0:00:09]} 4. Nxd4 {[%emt 0:00:08]} Nf6 {[%emt 0:00:07]} 5. Nc3 {[%emt 0:00:08]} a6 {[%emt 0:00:04]} 6. Be3 {[%emt 0:00:08]} e5 {[%emt 0:01:08]} 7. Nb3 {[%emt 0:00:09]} Be6 {[%emt 0:02:21]} 8. f3 {[%emt 0:00:45]} h5 {[%emt 0:00:17]} 9. Qd2 {[%emt 0:00:44]} Nbd7 {[%emt 0:01:07]} 10. Nd5 {[%emt 0:04:43] 10.Nd5 is better than 10.0-0-0. B90: Sicilian Najdorf: Unusual White 6th moves, 6 Be3 Ng4 and 6 Be3 e5.} Bxd5 {[%emt 0:05:02]} 11. exd5 {[%emt 0:00:15]} g6 {[%emt 0:00:19]} 12. O-O-O {[%emt 0:06:40] White has an edge.} Bg7 {[%emt 0:01:50]} 13. Kb1 {[%emt 0:00:33]} Qc7 {[%emt 0:03:15]} 14. h3 {[%emt 0:07:21]} Rc8 {[%emt 0:05:12]} 15. c4 {[%emt 1:26:12] [#]} O-O $146 {[%emt 0:08:52]} (15... b6 $11 {keeps the balance.}) ({Predecessor:} 15... b6 16. g3 Nc5 17. Be2 Nxb3 18. axb3 a5 19. g4 Kf8 20. g5 Nd7 21. Rhf1 Re8 {½-½ (63) Antipov,M (2619)-Najer,E (2654) Riga 2021}) 16. g4 $16 {[%emt 0:04:54]} Kh7 {[%emt 0:02:57]} 17. Qf2 {[%emt 0:08:17]} b6 {[%emt 0:07:34]} 18. Bd3 {[%emt 0:07:54]} Kg8 {[%emt 0:04:25][%cal Oe5e4]} 19. Rdg1 {[%emt 0:08:03] White is more active.} (19. g5 $16 Nh7 20. Rc1) 19... e4 $1 $15 {[%emt 0:02:22]} 20. fxe4 {[%emt 0:18:06]} Ne5 {[%emt 0:03:25][%csl LRc4,LRd3,LRg4][%mdl 64] [#] Deflection, Double Attack} 21. Be2 {[%emt 0:06:06] Strongly threatening Nd2.} Nxc4 {[%emt 0:14:13] Pair of Knights!} 22. Rc1 {[%emt 0:04:58] Black continues to play with concentration.} (22. Bd3 $15) 22... Qe7 {[%emt 0:05:22]} ({Better is} 22... Nxe4 $19 23. Qe1 {[#]} Nc3+ $1 {[%mdl 512]} 24. bxc3 Nxe3 25. Bxa6 Rce8) 23. Bxc4 {[%emt 0:21:14]} (23. e5 $17 Nxe3 24. Qxe3) 23... Qxe4+ $19 {[%emt 0:00:14]} 24. Ka1 {[%emt 0:05:44] Nd2 is the strong threat.} Rxc4 {[%emt 0:41:59]} 25. gxh5 {[%emt 0:01:55]} Nxh5 {[%emt 0:02:12]} 26. Bxb6 {[%emt 0:03:09]} (26. Rxc4 $142 Qxh1+ 27. Rc1 Qxd5 28. Bxb6) 26... Rfc8 {[%emt 0:40:36] White must now prevent ...Rc2.} ({Weaker is} 26... Qxd5 27. Rxc4 Qxh1+ 28. Rc1 Qxh3 29. Bd4 $19) 27. Rhf1 {[%emt 0:00:04]} Rxc1+ {[%emt 0:37:35]} ({Wrong is} 27... Qxd5 $2 28. Be3 $19) 28. Rxc1 {[%emt 0:01:39]} Rxc1+ $40 {[%emt 0:00:11][%mdl 128] Black wants a kill.} 29. Nxc1 {[%emt 0:00:04]} Qxd5 {[%emt 0:00:07]} 30. Be3 {[%emt 0:00:39]} Qe4 {[%emt 0:34:43]} 31. a3 {[%emt 0:01:20]} f5 {[%emt 0:05:15]} 32. Ne2 {[%emt 0:00:35]} (32. Qd2 {is a better defense.}) 32... Qc2 {[%emt 0:00:13][%csl Gg7][%cal Rc2b2]} 33. Nd4 {[%emt 0:00:29]} Qxf2 {[%emt 0:28:01] Black is clearly winning.} 34. Bxf2 {[%emt 0:00:04]} Nf4 {[%emt 0:00:04] Against Ne2} 35. h4 {[%emt 0:00:27]} (35. Be3 $142 Nxh3 36. Nf3) 35... Nh3 {[%emt 0:00:21]} 36. Nxf5 {[%emt 0:00:59]} gxf5 {[%emt 0:00:34] Weighted Error Value: White=0.68/Black=0.15 (very precise)} 0-1

[Event "Italian-ch Women 2022"]
[Site "Cagliari"]
[Date "2022.11.17"]
[Round "1.3"]
[White "Raccanello, Marianna"]
[Black "Cassi, Elisa"]
[Result "0-1"]
[ECO "D02"]
[WhiteElo "2062"]
[BlackElo "1995"]
[Annotator "TA"]
[PlyCount "50"]
[EventDate "2022.11.17"]
[EventType "tourn"]
[EventCountry "ITA"]
[SourceTitle "playchess.com"]
[Source "ChessBase"]
[SourceQuality "1"]
[TimeControl "40/6000+30:20/3000:900+30"]

{[%evp 15,50,-9,0,-21,-12,-54,-38,-76,-75,-150,-131,-133,-146,-191,-182,-171,-135,-137,-8,-9,70,-162,-172,-763,-729,-29981,-667,-651,-645,-639,-584,-1062,-1082,-1457,-1132,-29995,-1010]} 1. d4 {[%emt 0:00:06]} d5 {[%emt 0:00:07]} 2. Bf4 {[%emt 0:00:11]} Nf6 {[%emt 0:00:13]} 3. e3 {[%emt 0:00:10]} e6 {[%emt 0:00:34]} 4. c3 {[%emt 0:00:17]} c5 {[%emt 0:00:20]} 5. Nd2 {[%emt 0:00:23]} Bd6 {[%emt 0:00:21]} 6. Bg3 {[%emt 0:01:25]} Qc7 {[%emt 0:00:28]} 7. Bd3 {[%emt 0:02:19]} O-O {[%emt 0:04:13]} 8. Ngf3 {[%emt 0:15:19]} Nbd7 {[%emt 0:00:29][%cal Bb8d7,Bd7c5,Bc5d3][%mdl 32]} 9. Qe2 {[%emt 0:02:42] D02: 1 d4 d5 2 Nf3 sidelines, including 2...Nf6 3 g3 and 2...Nf6 3 Bf4.} Re8 {[%emt 0:13:27]} 10. e4 {[%emt 0:14:22] Hoping for e5.} e5 {[%emt 0:11:35][%cal Be6e5,Be5e4][%mdl 32] [#]} 11. dxc5 $146 {[%emt 0:09:53] Black is slightly better.} ({Predecessor:} 11. O-O exd4 12. cxd4 Bxg3 13. hxg3 dxe4 14. Nxe4 Nxe4 15. Bxe4 Nf6 16. Nd2 Bf5 17. f3 cxd4 {0-1 (53) Curwin,N (1499)-Ratsma,R (2226) Chennai 2022}) 11... Nxc5 {[%emt 0:02:07]} 12. Bb5 {[%emt 0:05:37]} (12. O-O $142) 12... Bd7 {[%emt 0:18:05]} 13. Bxd7 {[%emt 0:03:50]} Qxd7 {[%emt 0:01:37]} (13... Ncxd7 $6 14. O-O $11) 14. exd5 {[%emt 0:07:45]} e4 $1 {[%emt 0:01:30]} (14... Nxd5 15. O-O $15) 15. Nd4 {[%emt 0:05:00]} Nd3+ {[%emt 0:19:22]} (15... Nxd5 16. O-O $15) 16. Kf1 {[%emt 0:00:13][%cal Od2e4]} Nxd5 {[%emt 0:06:12] Black is much more active. The white rooks are badly placed.} ({Black should try} 16... Bxg3 $17 17. hxg3 Qxd5) 17. Nxe4 $11 {[%emt 0:12:05]} f5 {[%emt 0:11:32]} (17... Nxb2 $11 18. Bxd6 Na4) 18. Nxf5 $2 {[%emt 0:20:57] This costs White the game.} ({Of course not} 18. Bxd6 fxe4 19. Bg3 N5f4 $11) (18. Qxd3 $14 {keeps the upper hand.} fxe4 19. Qb5 (19. Qc4 Qf7 $11) 19... Qxb5+ 20. Nxb5 Bxg3 21. hxg3) 18... Qxf5 $19 {[%emt 0:10:20] Really sharp!} 19. Qxd3 {[%emt 0:00:04]} (19. Nxd6 Rxe2 20. Nxf5) 19... Rxe4 {[%emt 0:02:45][%cal Be8e4,Be4g4,Bg4g5][%mdl 32]} ({Weaker is} 19... Bxg3 20. Nf6+ Qxf6 21. Qxd5+ Re6 22. hxg3 $16) 20. Qb1 {[%emt 0:06:43] [#] Against Re1+} Bxg3 {[%emt 0:02:49]} (20... Rf8 $142 $1 21. f3 Ne3+ 22. Kg1 {[#]} Bc5 $1 23. Qxe4 Qxe4 24. fxe4 Ng4+ 25. Bf2 Rxf2 26. b4 Bb6 27. Rd1 Rxa2+ 28. Kf1 Ne3+ 29. Ke1 Nxg2+ 30. Kf1 Rf2+ 31. Kg1 Nf4 32. Rd8+ Kf7 33. Rd7+ Ke8 34. Re7+ Kxe7 35. h4 Ne2#) 21. hxg3 {[%emt 0:00:06]} Ne3+ {[%emt 0:00:43]} 22. Kg1 {[%emt 0:00:07] [#]} Nc2 {[%emt 0:00:38][%mdl 512]} 23. g4 {[%emt 0:01:38]} (23. Qxc2 Re1+) 23... Rxg4 {[%emt 0:00:41] White must now prevent ...Rf8.} 24. f3 {[%emt 0:00:41]} Rg5 {[%emt 0:00:59] ( -> ...Qc5+)} ({And not} 24... Qxf3 25. Qxc2 Qe3+ 26. Qf2 Qxf2+ 27. Kxf2 $17) 25. g4 {[%emt 0:01:07]} Qg6 {[%emt 0:01:06] Weighted Error Value: White=1.99/Black=0.76} (25... Qxf3 $142 26. Rh4 Qg3+ 27. Kf1 Rf8+ 28. Ke2 Rf2+ 29. Kd1 Qg1#) 0-1

[Event "Italian-ch Women 2022"]
[Site "Cagliari"]
[Date "2022.11.17"]
[Round "1.4"]
[White "Sedina, Elena"]
[Black "Maione, Melissa"]
[Result "0-1"]
[ECO "B30"]
[WhiteElo "2197"]
[BlackElo "1928"]
[Annotator "TA"]
[PlyCount "53"]
[EventDate "2022.11.17"]
[EventType "tourn"]
[EventCountry "ITA"]
[SourceTitle "playchess.com"]
[Source "ChessBase"]
[SourceQuality "1"]
[TimeControl "40/6000+30:20/3000:900+30"]

{[%evp 9,53,95,102,102,110,66,60,64,68,6,45,27,55,1,62,54,70,29,106,47,81,88,97,86,222,221,220,198,228,219,226,83,83,84,73,-104,121,105,96,-24,-28,-113,0,18,15,18]} 1. e4 {[%emt 1:41:00]} c5 2. Nf3 {[%emt 0:00:00]} Nc6 {[%emt 0:00:42]} 3. Bb5 {[%emt 0:00:00]} g5 {[%emt 0:00:30]} 4. Nxg5 {[%emt 0:00:00]} Nf6 {[%emt 0:00:30]} 5. Bxc6 {[%emt 0:00:00]} dxc6 {[%emt 0:02:13]} 6. d3 {[%emt 0:00:00] B30: Sicilian: 2...Nc6 3 Bb5, lines without ...g6.} Rg8 {[%emt 0:04:06]} 7. e5 {[%emt 0:00:00]} h6 {[%emt 0:01:58] [#]} 8. Nf3 $146 {[%emt 0:00:00] White is slightly better.} ({Predecessor:} 8. exf6 hxg5 9. O-O exf6 10. Re1+ Be6 11. Nc3 Be7 12. Be3 Qc7 13. Ne4 b6 14. Qd2 {1-0 (61) Dolzhikova,K (2238)-Malakhova,E (2337) Zhitomir 2017}) 8... Nd5 {[%emt 0:01:47]} 9. Kf1 {[%emt 0:00:00]} ({White should play} 9. O-O $14) 9... Be6 {[%emt 0:12:32][%cal Oc5c4]} 10. h3 {[%emt 0:00:00]} Qd7 {[%emt 0:05:00][%cal Oc5c4]} 11. Nc3 {[%emt 0:00:00]} ({Better is} 11. Nbd2 $14) 11... O-O-O {[%emt 0:03:43]} (11... Nxc3 $11 12. bxc3 O-O-O) 12. Ne4 $1 $14 {[%emt 0:00:00]} b6 {[%emt 0:02:08][%cal Oc5c4]} 13. Bd2 {[%emt 0:00:00]} Nb4 {[%emt 0:07:18]} (13... c4 $11) 14. Ng3 {[%emt 0:00:00]} (14. a3 $16 Nd5 15. Qc1) 14... Bg7 {[%emt 0:13:20]} 15. a3 $1 {[%emt 0:00:14]} Nd5 {[%emt 0:00:24][%cal Oc5c4]} 16. Qc1 {[%emt 0:01:42]} Qc7 {[%emt 0:02:56]} (16... f5 $16) 17. c4 $18 {[%emt 0:00:22]} ({Weaker is} 17. Bxh6 Bxe5 18. Nxe5 Qxe5 $11) 17... Bxe5 {[%emt 0:02:04]} 18. cxd5 {[%emt 0:00:15]} Bxd5 {[%emt 0:03:36]} 19. Nxe5 {[%emt 0:01:18]} Qxe5 {[%emt 0:00:20]} 20. Qe1 {[%emt 0:05:05]} (20. Bc3 $18 Qd6 21. Qe3) 20... Qxb2 $16 {[%emt 0:01:35]} 21. Kg1 {[%emt 0:00:13]} h5 {[%emt 0:01:20]} 22. Bf4 $2 {[%emt 0:00:44] [#]} (22. h4 $16 {and life is bright.}) 22... e6 $2 {[%emt 0:03:39]} (22... h4 $1 $17 {[%cal Rh4g3]} 23. Qxe7 Rd7) 23. h4 {[%emt 0:00:34] Hoping for Be5.} f6 {[%emt 0:03:19] Prevents Be5.} 24. Ne4 {[%emt 0:00:27]} (24. Rh2 $16) 24... Rg4 $11 {[%emt 0:04:04] The board is on fire.} 25. Bg3 {[%emt 0:00:30] [#]} (25. Rb1 $11 {keeps the balance.} Qc2 26. Bg3 (26. g3 $2 Qxd3 27. Nd6+ Kd7 $19) 26... Bxe4 27. dxe4) 25... Bxe4 {[%emt 0:04:13] Black has more active pieces. The white rooks are badly placed.} ({But not} 25... Qd4 $6 26. Kh2 $11) (25... f5 $1 $17 {[%cal Rf5e4]} 26. Qc3 Qxc3 27. Nxc3 f4 28. Nxd5 Rxd5) 26. dxe4 {[%emt 0:00:25] With the idea Kh2.} Rd2 {[%emt 0:00:38]} 27. Kh2 {[%emt 0:00:00][%mdl 32768] White really could win this.  Weighted Error Value: White=0.46/Black=0.38. Sensor Board Error (Ke4/e5)?} 0-1

[Event "Italian-ch Women 2022"]
[Site "Cagliari"]
[Date "2022.11.18"]
[Round "2.1"]
[White "Zimina, Olga"]
[Black "Maione, Melissa"]
[Result "1-0"]
[ECO "B07"]
[WhiteElo "2283"]
[BlackElo "1928"]
[Annotator "TA"]
[PlyCount "93"]
[EventDate "2022.11.17"]
[EventType "tourn"]
[EventCountry "ITA"]
[SourceTitle "playchess.com"]
[Source "ChessBase"]
[SourceQuality "1"]
[TimeControl "40/6000+30:20/3000:900+30"]

{[%evp 10,93,12,9,24,26,25,24,24,26,30,18,44,48,39,39,37,35,43,32,70,70,68,65,94,81,79,87,86,68,68,70,82,82,87,89,96,82,225,218,335,283,325,241,247,245,245,252,247,235,238,239,244,260,322,170,182,177,175,169,172,182,175,165,177,164,185,164,206,225,194,144,129,116,516,523,531,513,498,497,670,687,644,634,777,715]} 1. d4 {[%emt 0:01:15]} Nf6 {[%emt 0:00:14]} 2. Nf3 {[%emt 0:00:06]} g6 {[%emt 0:00:13]} 3. Nbd2 {[%emt 0:00:25]} Bg7 {[%emt 0:00:52]} 4. e4 {[%emt 0:00:29]} d6 {[%emt 0:00:44]} 5. Bd3 {[%emt 0:00:22]} O-O {[%emt 0:01:03]} 6. O-O {[%emt 1:40:53]} Nbd7 {[%emt 0:01:01] B07: Pirc Defence: Miscellaneous Systems.} 7. Re1 {[%emt 0:02:52]} e5 {[%emt 0:02:25]} 8. dxe5 {[%emt 0:03:29]} dxe5 {[%emt 0:00:44] White has an edge.} 9. Bc4 {[%emt 0:05:26]} Qe7 {[%emt 0:05:14] [#]} 10. a4 $146 {[%emt 0:01:14]} ({Predecessor:} 10. Nf1 Nb6 11. Bd3 Be6 12. Nxe5 Qc5 13. Nf3 Rad8 14. Qe2 Rfe8 15. Be3 Qe7 16. Ng3 {1-0 (44) Rodrigues,N (1919)-Da Silveira,R (1802) Sao Paulo 2019}) 10... Nb6 {[%emt 0:10:39]} 11. Bf1 {[%emt 1:30:10]} a5 {[%emt 1:22:51]} 12. b3 {[%emt 0:04:36]} Rd8 {[%emt 0:00:58]} 13. Ba3 {[%emt 0:00:38]} Qe8 {[%emt 0:00:47]} 14. Qe2 {[%emt 0:00:57]} Bd7 {[%emt 0:04:14]} 15. Bb2 {[%emt 1:25:11]} Nh5 {[%emt 0:01:36]} 16. g3 $1 {[%emt 0:00:06] Against Nf4} Bf6 {[%emt 0:02:59]} 17. Nc4 {[%emt 0:03:32]} Nxc4 {[%emt 0:03:35]} 18. Qxc4 {[%emt 0:01:44]} Bg4 {[%emt 0:00:36]} 19. Qc3 {[%emt 1:12:09][%cal Rf3e5]} Bxf3 {[%emt 0:04:04]} 20. Qxf3 {[%emt 0:00:16]} Qc6 {[%emt 0:03:58]} 21. Qc3 {[%emt 0:06:41]} Qb6 {[%emt 0:01:45]} 22. Rad1 {[%emt 0:05:29]} Ng7 {[%emt 0:07:10]} 23. Qf3 {[%emt 0:00:21]} h5 {[%emt 0:06:54]} (23... Ne8 $16) 24. Bc4 $18 {[%emt 0:01:51]} Rd6 {[%emt 0:48:41]} (24... Rac8 {keeps fighting.} 25. h4 Rd6) 25. Ba3 {[%emt 0:58:44] This bishop pair is nice.} Rdd8 {[%emt 0:02:16] [#]} 26. Bc5 $1 {[%emt 0:10:26][%mdl 512]} Qc6 {[%emt 0:05:01]} 27. Rxd8+ {[%emt 0:11:37]} Rxd8 {[%emt 0:00:08] [#]} 28. Be7 {[%emt 0:00:08][%mdl 512]} Bxe7 {[%emt 0:04:19]} 29. Qxf7+ {[%emt 0:00:08]} Kh7 {[%emt 0:01:04] Threatens to win with ...Bc5.} 30. Qxe7 {[%emt 0:00:06]} Re8 {[%emt 0:01:12]} 31. Qf7 {[%emt 0:00:59]} Qc5 {[%emt 0:02:26]} 32. Qf6 {[%emt 0:03:02]} (32. Rd1 $142) 32... Qe7 {[%emt 0:04:46]} 33. Qxe7 {[%emt 0:00:58]} Rxe7 {[%emt 0:00:05][%mdl 4096] Endgame KRB-KRN} 34. Rd1 {[%emt 0:00:32]} Ne8 {[%emt 0:23:53]} 35. Rd8 {[%emt 0:00:08]} Nf6 {[%emt 0:01:23]} 36. f3 {[%emt 0:00:13]} g5 {[%emt 0:22:08]} 37. Kf2 {[%emt 0:07:49]} Kg7 {[%emt 0:05:14]} 38. Ke3 {[%emt 0:03:30]} b6 {[%emt 0:01:47]} 39. c3 {[%emt 0:02:54][%cal Bc2c3,Bc3b4,Bb4b5,Bb5b6][%mdl 32]} g4 {[%emt 0:05:25]} 40. b4 {[%emt 0:01:36]} ({White should play} 40. Rc8 $18) 40... gxf3 $16 {[%emt 0:01:18]} 41. Kxf3 {[%emt 0:49:34] And now bxa5 would win.} Nd7 $2 {[%emt 0:52:35][%mdl 8192]} (41... Re8 $16 {is tougher.} 42. Rxe8 Nxe8) 42. Ra8 $18 {[%emt 0:09:09] White is clearly winning.} axb4 {[%emt 0:01:43]} 43. cxb4 {[%emt 0:02:17]} c5 {[%emt 0:00:00]} 44. b5 {[%emt 0:03:18]} Nf6 {[%emt 0:01:26]} 45. a5 {[%emt 0:00:00]} bxa5 {[%emt 0:00:08]} 46. b6 {[%emt 0:00:12]} Kg6 {[%emt 0:01:01]} 47. Ra7 {[%emt 0:01:28] Prevents Rb7.  Weighted Error Value: White=0.13 (very precise) /Black=0.37} 1-0